Cogmind - Beta 16.1 @@@ ROGUE MODE // 2026.03.07 @ 01:48:50 Player: parasect Result: Destroyed by S-27 Virus with Autogun Performance ------------- Evolutions (6) 3000 Regions Visited (25) 5000 Robots Destroyed (394) 1970 Value Destroyed (13050) 13050 Prototype IDs (34) 680 Alien Tech Used (1) 200 Bonus (2173) 2173 TOTAL SCORE: 26073 Bonus ------- High Alert Combat Kills 1168 Follower Combat Kills 1604 Entered Garrisons 200 Network Hubs Disabled 200 Met Data Miner 300 Met Imprinter 300 Acquired ECA 300 Built Enhanced Grunts 300 Met R17 at Cetus 500 Friendly Fire -2699 Cogmind --------- Core Integrity 0/1150 Matter 14/300 Energy 100/100 System Corruption 11% Temperature Cool (12) Movement Core (50) Location -4/Factory Parts ------- > --- POWER (2) -------- (None) > --- PROPULSION (7) --- (None) > --- UTILITY (7) ------ Advanced Hacking Suite > --- WEAPON (4) ------- (None) > --- INVENTORY (5) ---- Antimatter Reactor Centrium Heavy Treads Centrium Medium Armor Plating Heavy Gauss Cannon Peak State ------------ > --- POWER ------------ Particle Reactor Quantum Reactor > --- PROPULSION ------- Armored Medium Treads Centrium Heavy Treads Centrium Heavy Treads Centrium Heavy Treads > --- UTILITY ---------- Advanced Heat Sink Huge Storage Unit Centrium Medium Armor Plating Advanced Shield Generator Improved Hacking Suite > --- WEAPON ----------- KE Penetrator KE Penetrator Railgun Railgun > --- INVENTORY -------- Quantum Reactor Quantum Reactor Advanced Treads Armored Medium Treads Centrium Heavy Treads Advanced Heat Sink Advanced Energy Well Advanced Energy Well Matter Compressor Makeshift Transmission Jammer Centrium Medium Armor Plating Centrium Medium Armor Plating Graphene Brace Improved Hacking Suite Improved Hacking Suite Advanced Hacking Suite Improved System Shield High-powered Tractor Beam KE Penetrator Advanced KE Penetrator Advanced KE Penetrator Advanced KE Penetrator Enhanced Gauss Cannon Heavy Rocket Launcher [Rating: 145] Favorites ----------- Power Cooled Deuterium Engine Engine Cooled Deuterium Engine Power Core Reinforced Fission Core Reactor Quantum Reactor Propulsion Light Treads Treads Light Treads Leg Aluminum Leg Flight Unit Impulse Thruster Utility Huge Storage Unit Device Experimental Sensor Array Storage Huge Storage Unit Processor Improved Signal Interpreter Hackware Improved Hacking Suite Protection Improved Medium Armor Plating Weapon Enhanced Autogun Energy Gun Medium Laser Energy Cannon Heavy Plasma Cannon Ballistic Gun Enhanced Autogun Ballistic Cannon Heavy Flak Cannon Launcher Heavy Rocket Launcher Special Weapon Remote Datajack Impact Weapon Flail Slashing Weapon Makeshift Axe Special Melee Weapon Datajack Build | -11 -10 -10 -9 -9 -9 -8 -8 -8 -8 -7 -7 -7 -7 -6 -6 -6 -6 -6 -5 -5 -5 -5 -5 -5 -4 ------- Run | Yrd Mat Min Mat Min Exi Min Mat Gar Mat Fac Low Low Zio Pro Fac Low Low Dat Pro Fac Ext Cet Arc Hub Fac Slots Evolved 12 | . . . 2 . . . 2 . . 2 . . . . 2 . . . . 2 . . . . 2 Power 1 | . . . . . . . . . . . . . . . . . . . . 1 . . . . . Propulsion 4 | . . . 1 . . . 1 . . . . . . . 2 . . . . . . . . . . Utility 5 | . . . 1 . . . . . . 2 . . . . . . . . . . . . . . 2 Weapon 2 | . . . . . . . 1 . . . . . . . . . . . . 1 . . . . . Parts Attached 233 | 1 7 13 24 6 3 1 14 10 15 14 2 . 17 5 13 4 4 . 1 18 14 12 12 9 14 Power 24 | . . 2 3 1 . . 2 1 1 1 . . 2 . 2 . 1 . . 1 2 2 1 . 2 Engine 13 | . . 2 3 1 . . 2 . . 1 . . 2 . 1 . . . . . 1 . . . . Core 5 | . . . . . . . . 1 1 . . . . . . . 1 . . 1 1 . . . . Reactor 6 | . . . . . . . . . . . . . . . 1 . . . . . . 2 1 . 2 Propulsion 66 | . 2 5 8 2 . 1 9 2 8 . . . 6 1 5 1 . . . 8 . 4 2 . 2 Treads 58 | . . 3 8 2 . 1 9 2 8 . . . 5 1 5 1 . . . 8 . 3 2 . . Leg 6 | . 2 2 . . . . . . . . . . 1 . . . . . . . . 1 . . . Wheel . | . . . . . . . . . . . . . . . . . . . . . . . . . . Hover . | . . . . . . . . . . . . . . . . . . . . . . . . . . Flight 2 | . . . . . . . . . . . . . . . . . . . . . . . . . 2 Utility 79 | 1 3 . 7 2 1 . 2 4 4 6 1 . 3 2 6 2 2 . . 4 6 3 5 8 7 Device 41 | 1 2 . 1 1 1 . . 1 1 3 1 . 2 2 4 1 1 . . 3 3 2 3 4 4 Storage 5 | . 1 . 1 . . . . . 1 . . . . . 1 . . . . . . . . . 1 Processor 7 | . . . . . . . 1 . 1 1 . . . . 1 1 . . . 1 . . . 1 . Hackware 7 | . . . . . . . . . . . . . . . . . 1 . . . 1 . 1 3 1 Protection 19 | . . . 5 1 . . 1 3 1 2 . . 1 . . . . . . . 2 1 1 . 1 Artifact . | . . . . . . . . . . . . . . . . . . . . . . . . . . Weapon 64 | . 2 6 6 1 2 . 1 3 2 7 1 . 6 2 . 1 1 . 1 5 6 3 4 1 3 Energy Gun 3 | . . 1 . . 1 . . . . . . . . . . 1 . . . . . . . . . Energy Cannon 2 | . . . . . . . . . . 1 . . . . . . 1 . . . . . . . . Ballistic Gun 36 | . 1 4 5 . 1 . 1 2 2 2 1 . 3 1 . . . . . 4 3 3 2 . 1 Ballistic Cannon 7 | . . . . . . . . . . 1 . . 1 1 . . . . 1 . 1 . . 1 1 Launcher 6 | . 1 . . . . . . 1 . 1 . . 1 . . . . . . . 1 . . . 1 Special Weapon 4 | . . 1 . . . . . . . 1 . . . . . . . . . 1 . . 1 . . Impact Weapon 1 | . . . . 1 . . . . . . . . . . . . . . . . . . . . . Slashing Weapon 3 | . . . . . . . . . . 1 . . 1 . . . . . . . 1 . . . . Piercing Weapon . | . . . . . . . . . . . . . . . . . . . . . . . . . . Special Melee Weapon 2 | . . . 1 . . . . . . . . . . . . . . . . . . . 1 . . Unidentified Prototypes 15 | . . . 1 1 1 . . . . 1 . . . . 1 1 . . . . . 5 . 1 3 Corrupted Parts 3 | . . . . . . . . . . . . . . . . . . . . . . . 2 . 1 System Corruption 18 | . . . . . . . . . . . . . . . . . . . . . . . 13 . 5 Parts Lost 54 | . 1 6 2 1 . . 4 7 3 . . . 8 2 . . . . . 3 3 1 1 1 11 Power 7 | . . 2 . . . . 1 1 . . . . 2 . . . . . . 1 . . . . . Propulsion 17 | . . 2 . . . . 2 2 1 . . . 3 1 . . . . . 1 . 1 . . 4 Utility 18 | . 1 . 1 1 . . 1 3 . . . . 2 1 . . . . . . 3 . 1 . 4 Weapon 12 | . . 2 1 . . . . 1 2 . . . 1 . . . . . . 1 . . . 1 3 Highest Loss Streak 4 | . 1 3 1 1 . . 3 2 2 . . . 3 2 . . . . . 2 2 1 1 1 4 To Critical Strikes 1 | . . . . . . . . . . . . . . . . . . . . . . 1 . . . Average Backups 22 | 6 7 8 21 23 25 24 24 19 24 24 24 25 24 21 23 24 25 25 25 23 23 22 23 22 15 Power 1 | 1 1 . 1 1 1 1 . . 1 1 1 1 . 1 1 1 1 1 1 . 1 1 2 2 1 Propulsion 7 | 4 2 1 5 8 8 8 8 6 10 11 11 11 11 10 8 8 8 8 8 7 5 3 2 2 1 Utility 6 | . 1 3 5 5 7 7 6 3 3 3 5 6 5 4 7 9 9 9 9 9 9 10 12 12 8 Weapon 6 | 1 2 2 7 7 8 7 8 8 8 7 6 6 6 5 5 6 7 7 6 4 5 5 5 4 3 Tool/Special . | . . . . . . . . . . . . . . . . . . . . . . . . . . Unused Backups 67 | . 3 4 7 1 . . 6 . 3 4 . . 4 . 3 2 1 . . 2 4 9 1 . 13 Power 6 | . . . . . . . 1 . . 1 . . . . . . . . . . . 1 . . 3 Propulsion 11 | . . 2 . . . . 2 . . . . . 1 . . . . . . . 3 1 . . 2 Utility 37 | . 3 2 4 . . . 2 . 1 1 . . 2 . 3 2 1 . . 2 1 7 1 . 5 Weapon 11 | . . . 2 1 . . 1 . 2 1 . . 1 . . . . . . . . . . . 3 Tool/Special 2 | . . . 1 . . . . . . 1 . . . . . . . . . . . . . . . Average Slot Usage (%) 94 | . 98 94 88 87 88 88 97 94 97 99 100 100 98 99 99 99 100 100 100 98 99 97 81 87 62 Engine 5 | . 14 12 11 11 11 11 9 5 . 2 7 7 6 7 6 6 1 . . . . . . . . Core 1 | . . . . . . . . 3 9 4 . . . . . . 4 6 6 4 9 9 1 . . Reactor 1 | . . . . . . . . . . . . . . . . . . . . 4 . 1 9 11 7 Treads 31 | . . 17 32 33 33 33 35 35 35 30 30 30 29 29 39 42 43 43 43 37 38 36 23 27 17 Device 10 | . 12 14 1 . . . . 1 7 7 7 7 12 23 20 18 18 18 18 15 15 14 11 7 11 Storage 7 | . 14 14 11 11 11 11 9 9 9 7 7 7 7 7 6 6 6 6 6 5 5 5 5 5 3 Processor 5 | . . . . . . . 7 4 4 14 15 15 8 7 6 6 6 6 6 5 5 5 . 2 3 Protection 5 | . . . 10 10 11 11 9 7 4 7 7 7 6 . . . . . . . . 1 4 5 4 Energy Cannon 2 | . . . . . . . . . . 2 6 7 2 6 5 5 6 6 5 1 . . . . . Ballistic Gun 16 | . 28 14 21 19 . 22 26 21 24 18 15 15 17 9 6 5 6 6 6 16 21 21 19 17 9 Peak Build Rating 145 | 7 8 8 22 24 23 24 30 31 36 53 54 54 56 59 68 74 76 76 77 91 92 124 145 137 142 Average Rating 57 | 6 7 7 19 21 21 23 27 28 30 45 53 54 48 57 65 70 75 75 75 85 89 106 136 133 101 On Entrance 54 | 6 7 8 8 21 21 23 24 30 26 36 46 48 54 52 59 67 72 76 75 76 91 90 120 137 134 Avg Prop Armor Cover (%) 24 | . . . . . . . . . . . . . . . . . . . . . . . 24 . . Naked Turns 41 | . . . . . . . . . . . . . . . . . . . . . . . . . 41 Heaviest Build 159 | 15 30 30 108 108 108 108 114 114 99 115 120 116 121 120 121 117 117 117 117 148 148 147 155 156 159 Greatest Support 267 | 20 20 40 60 60 60 60 80 80 88 88 88 88 95 94 142 162 162 162 162 162 148 196 267 236 236 Greatest Overweight (x) 50 | . 1 1 1 1 1 1 1 1 1 1 1 1 1 1 . . . . . 1 . . 50 . 1 Average Overweight (x) . | . . . . 1 1 1 1 1 1 1 1 1 1 1 . . . . . . . . 10 . . Largest Inventory Capacity 25 | 8 15 15 25 25 25 25 25 25 25 25 25 25 25 25 25 25 25 25 25 25 25 25 25 25 25 Average Capacity 24 | 8 10 15 24 25 25 25 25 25 25 25 25 25 25 25 25 25 25 25 25 25 25 25 25 25 19 Most Carried 25 | 6 11 12 25 25 25 25 25 24 25 25 25 25 25 23 25 25 25 25 25 25 25 25 25 25 24 Average Carried 23 | 5 7 8 23 24 24 24 24 20 24 24 24 25 24 21 23 24 25 25 24 23 24 24 24 24 17 Final Capacity 25 | 8 15 15 25 25 25 25 25 25 25 25 25 25 25 25 25 25 25 25 25 25 25 25 25 25 5 Final Carried 25 | 4 11 10 25 25 24 25 25 23 25 25 25 25 22 22 25 25 25 25 25 25 25 25 25 24 5 Class Distribution -------------------- 20% | Scavenger-Mutant 16% | Skirmisher 13% | Tank 13% | Scavenger-Tank 11% | Scavenger-Skirmisher 8% | Mutant 5% | Derelict-Skirmisher 4% | Scavenger-Gunner Dominant Class ---------------- Mutant | -10/Materials Mutant | -10/Mines Scavenger-Mutant | -9/Materials Scavenger-Mutant | -9/Mines Mutant | -9/Exiles Scavenger-Mutant | -8/Mines Scavenger-Gunner | -8/Materials Scavenger-Mutant | -8/Garrison Scavenger-Mutant | -8/Materials Scientist-Tank | -7/Factory Skirmisher | -7/Lower Caves Skirmisher | -7/Lower Caves Tank | -7/Zion Scavenger-Skirmisher | -6/Proximity Caves Scavenger-Skirmisher | -6/Factory Scavenger-Skirmisher | -6/Lower Caves Derelict-Skirmisher | -6/Lower Caves Derelict-Skirmisher | -6/Data Miner Derelict-Skirmisher | -5/Proximity Caves Derelict-Skirmisher | -5/Factory Scavenger-Skirmisher | -5/Extension Scavenger-Skirmisher | -5/Cetus Scavenger-Tank | -5/Archives Scavenger-Tank | -5/Hub_04(d) Scavenger-Tank | -4/Factory Resources | -11 -10 -10 -9 -9 -9 -8 -8 -8 -8 -7 -7 -7 -7 -6 -6 -6 -6 -6 -5 -5 -5 -5 -5 -5 -4 ----------- Run | Yrd Mat Min Mat Min Exi Min Mat Gar Mat Fac Low Low Zio Pro Fac Low Low Dat Pro Fac Ext Cet Arc Hub Fac Matter Collected 15565 | 222 201 712 1276 371 33 199 747 831 813 751 501 12 1961 441 178 327 60 . 216 1328 1772 593 632 574 814 Remotely 1228 | . . . . . . . . . . . . . 285 . . . . . . 570 179 . . 5 189 Salvage Created 16296 | 106 298 254 2405 941 . 343 1245 793 845 491 157 . 1694 191 249 205 147 . 187 1125 2000 301 342 545 1432 Parts 798 | 6 32 18 144 46 . 19 52 42 43 23 6 . 106 6 14 1 2 . 3 45 72 18 21 34 45 Haulers Intercepted 14 | . 1 . 4 . . . 3 . 3 . . . . . 1 . . . . 1 . . . . 1 Recyclers Shooed 22 | . . 3 3 1 . . 7 . 1 . . . . . 2 . . . . 1 2 . . . 2 Parts Field Recycled . | . . . . . . . . . . . . . . . . . . . . . . . . . . Retrieved Matter . | . . . . . . . . . . . . . . . . . . . . . . . . . . Parts Self-Destructed 24 | . . . . . . . . . . . 5 . 5 3 . 3 2 . 6 . . . . . . Prevented 1 | . . . . . . . . . . . . . . . . . 1 . . . . . . . . Parts Restored . | . . . . . . . . . . . . . . . . . . . . . . . . . . Kills | -11 -10 -10 -9 -9 -9 -8 -8 -8 -8 -7 -7 -7 -7 -6 -6 -6 -6 -6 -5 -5 -5 -5 -5 -5 -4 ------- Run | Yrd Mat Min Mat Min Exi Min Mat Gar Mat Fac Low Low Zio Pro Fac Low Low Dat Pro Fac Ext Cet Arc Hub Fac Combat Hostiles Destroyed 240 | . 11 20 43 13 . 6 14 29 12 7 2 . 13 4 4 . . . 6 10 18 1 1 8 18 Guns 164 | . 8 6 40 13 . 6 14 13 12 7 2 . 5 1 . . . . 2 7 16 1 1 7 3 Cannons 20 | . . . . . . . . . . . . . 6 1 4 . . . 2 3 . . . 1 3 AOE 56 | . 3 14 3 . . . . 16 . . . . 2 2 . . . . 2 . 2 . . . 12 Classes Destroyed 26 | 2 5 3 5 1 . . 1 . . 1 . . 4 2 . . 1 . . 1 . . . . . Worker 13 | . . 1 . 1 . 1 . . 1 1 . . . . 2 . . . . 2 . . . 2 2 Builder 9 | . 1 1 2 . . . . . . . . . . . . . . . . 1 1 . . 1 2 Tunneler 4 | 1 . . . 1 . 1 . . . . . . . . . . . . . . . . . . 1 Hauler 14 | . 1 . 4 . . . 3 . 3 . . . . . 1 . . . . 1 . . . . 1 Recycler 32 | 1 . 1 5 6 . . 4 . 2 2 . . . . . . . . . 2 5 . . . 4 Minesweeper 1 | . . . . . . . . . . . . . . . . . 1 . . . . . . . . Mechanic 1 | . . . . 1 . . . . . . . . . . . . . . . . . . . . . Operator 13 | . . . 2 . . . 1 . . . . . . . . . . . . . 3 . 7 . . Drone 4 | . . . . . . . . . . . . . . 2 . . . . 2 . . . . . . Watcher 19 | . 2 . 5 . . . 3 . 4 . . . . . . . . . . 1 1 2 . . 1 Swarmer 47 | . 9 5 11 6 . . . 11 3 . . . . . 2 . . . . . . . . . . Grunt 81 | . 2 2 19 5 . 6 8 11 3 1 . . . . 1 . . . 4 6 4 . . . 9 Brawler 5 | . . . 1 1 . . . . 1 . . . . . . . . . . . 1 . . 1 . Duelist 3 | . . . 1 1 . . 1 . . . . . . . . . . . . . . . . . . Protector 1 | . . . 1 . . . . . . . . . . . . . . . . . . . . . . Sentry 36 | . . . 10 . . . 4 4 5 1 . . . . . . . . . 1 8 . 1 2 . Demolisher 1 | . . 1 . . . . . . . . . . . . . . . . . . . . . . . Hunter 21 | . . . . . . . 1 3 . . 2 . . 2 . . . . . . 4 . . 2 7 Programmer 13 | . . . . . . . . . . 5 . . . . 1 . . . . 2 . . . 3 2 Heavy 1 | . . . . . . . . . . . . . . . . . . . . 1 . . . . . Cetus Guard 1 | . . . . . . . . . . . . . . . . . . . . . . 1 . . . Enhanced Grunt 1 | . . . . . . . . . . . . . . . . . . . . . . 1 . . . Zionite 55 | . . . . . . . . . . . . . 55 . . . . . . . . . . . . Packrat 4 | . . . . . . . . . . . . . . . . 2 2 . . . . . . . . Samaritan 2 | . . . . . . . . . . . . . . 1 . 1 . . . . . . . . . Tinkerer 5 | . . . . . . . . . . . . . 5 . . . . . . . . . . . . Assembled 12 | . . 12 . . . . . . . . . . . . . . . . . . . . . . . Surgeon 1 | . . . . . . . . . . . . . 1 . . . . . . . . . . . . Thug 6 | . . . . 1 . . . . . . . . 4 . . . . . . . 1 . . . . Savage 1 | . . . . . . . . . . . . . 1 . . . . . . . . . . . . Butcher 1 | . . . . . . . . . . . . . . . . . . . . . 1 . . . . Marauder 2 | . . . . . . . . . . . . . 2 . . . . . . . . . . . . Mutant 6 | . . . . . . . . . . . . . 6 . . . . . . . . . . . . Best Kill Streak 11 | 2 3 6 5 4 . 3 11 11 5 3 1 . 9 2 3 . 1 . 4 7 4 2 3 3 10 Combat Bots Only 11 | . 3 5 5 4 . 3 3 11 3 2 1 . 6 2 3 . . . 4 5 3 1 1 2 8 Max Kills in Single Turn 4 | 1 3 4 2 2 . 1 1 3 1 1 1 . 1 2 1 1 1 . 1 2 2 1 1 2 3 Gunslinging 1 | . . . . 1 . . . 1 . . . . . . . . . . . . . . . . . Exploded 3 | . 3 3 2 . . . . 3 . . . . 1 2 . . . . 1 . 1 . . . 3 Melee . | . . . . . . . . . . . . . . . . . . . . . . . . . . Uniques/NPCs Destroyed 1 | . . . . . . . . . . . . . . . . . . . . . . 1 . . . A7 (-5/Cetus) Combat | -11 -10 -10 -9 -9 -9 -8 -8 -8 -8 -7 -7 -7 -7 -6 -6 -6 -6 -6 -5 -5 -5 -5 -5 -5 -4 -------- Run | Yrd Mat Min Mat Min Exi Min Mat Gar Mat Fac Low Low Zio Pro Fac Low Low Dat Pro Fac Ext Cet Arc Hub Fac Hostile Shots Fired 1804 | . 46 55 176 37 . 31 63 128 69 69 12 . 274 33 11 . . . 21 76 126 28 14 150 385 Missed 554 | . 10 15 50 10 . 10 16 25 26 27 2 . 107 12 5 . . . 5 20 23 6 5 39 141 Hits 1250 | . 36 40 126 27 . 21 47 103 43 42 10 . 167 21 6 . . . 16 56 103 22 9 111 244 Melee 29 | . . 7 . 6 . . 2 . 2 . . . 12 . . . . . . . . . . . . Projectile 1221 | . 36 33 126 21 . 21 45 103 41 42 10 . 155 21 6 . . . 16 56 103 22 9 111 244 AOE 9 | . . 7 . . . . . . . . . . . . . . . . . 1 . . . . 1 Critical Strikes 54 | . . 1 8 . . 2 2 3 2 1 . . 8 . . . . . 1 1 3 5 . 7 10 Actively Blocked 7 | . . . . . . . . . . . . . . . . . . . . . . . . . 7 Part Disruptions 5 | . . 2 . . . . . . . . . . 2 . . . . . . 1 . . . . . Damage Taken 19089 | . 316 947 1532 428 . 374 774 1643 606 425 106 . 2699 315 143 . . . 223 1052 1648 481 176 1565 3636 Core 2135 | . 41 83 92 6 . 18 . 94 37 59 12 . 183 83 . . . . . 65 133 55 . 22 1152 Absorbed by Shields 3031 | . . . . . . . . . . 24 38 . 412 70 30 . . . 79 216 585 172 65 400 940 Reduced by Siege Mode 105 | . . . . . . . . . . . . . . . . . . . . . . . . 51 54 Redirected to Shielding 101 | . . . . . . . . 101 . . . . . . . . . . . . . . . . . Regen/Repaired (Parts) 469 | . . . . . . . 11 . . . . . 458 . . . . . . . . . . . . Core Remaining (%) 74 | 100 . 50 . . . 71 . . 76 . . . . 51 . . . . 100 . . . . 72 . Volleys Fired 1316 | 2 31 68 159 40 . 18 58 64 46 37 26 . 380 19 18 29 21 . 16 49 83 29 44 34 45 Largest 4 | 2 2 2 2 2 . 2 3 3 3 3 3 . 3 3 3 1 1 . 3 4 4 4 4 4 4 Hottest 159 | 40 40 100 46 46 . 48 71 71 75 90 90 . 143 139 159 90 90 . 116 130 118 127 127 148 148 Shots Fired 2812 | 4 61 94 318 82 . 37 174 144 138 73 40 . 592 38 30 29 21 . 32 169 315 96 101 109 115 Gun 2130 | 4 60 57 316 82 . 37 174 127 138 55 21 . 223 19 6 . . . 8 148 309 92 96 85 73 Cannon 566 | . . . . . . . . . . 17 19 . 348 18 24 29 21 . 21 17 . . . 24 28 Launcher 101 | . 1 35 2 . . . . 17 . . . . 18 1 . . . . 3 . 6 4 . . 14 Special 15 | . . 2 . . . . . . . 1 . . 3 . . . . . . 4 . . 5 . . Kinetic 2234 | 4 60 45 316 82 . 37 174 127 138 55 21 . 251 19 13 . . . 24 161 309 92 96 109 101 Thermal 469 | . . 14 . . . . . . . 17 19 . 320 18 17 29 21 . 5 4 . . 5 . . Explosive 93 | . 1 35 2 . . . . 17 . . . . 18 1 . . . . 3 . 2 . . . 14 Electromagnetic 8 | . . . . . . . . . . . . . . . . . . . . . 4 4 . . . Robot Hit Streak 31 | 2 8 10 17 31 . 13 19 27 14 9 8 . 10 7 8 11 4 . 6 11 22 7 13 21 12 Robot Miss Streak 10 | . 4 3 6 4 . 1 2 1 3 2 3 . 7 6 2 1 3 . 2 3 4 3 10 2 4 Penetration Max 2 | . . . . . . . . . . . . . . . . . . . . 1 1 1 1 1 2 Secondary Targets 29 | . 1 1 3 5 . 2 2 3 3 . . . 2 . . . . . . 1 3 1 1 1 . Max Gunslinging Chain 1 | . 1 1 1 1 . 1 1 1 1 . . . 1 . . . . . . 1 1 1 1 1 . Shots Hit Robots 1697 | 2 31 50 204 67 . 30 125 115 96 41 17 . 259 21 17 7 3 . 17 116 226 58 62 66 67 Core Hits 823 | 2 15 43 92 31 . 14 51 53 38 22 6 . 122 14 9 3 3 . 18 54 82 20 30 22 79 Critical Kills 12 | . . 1 1 . . . . . . . . . 1 . . . . . . 3 2 2 1 1 . Critical Parts Destroyed 25 | . 1 . 2 . . . 1 4 3 1 . . 1 . . . . . . 5 1 1 1 2 2 Critical Strikes 49 | . 1 2 3 . . . 1 4 3 1 . . 4 . 1 . . . . 8 4 4 4 5 4 Burn 1 | . . 1 . . . . . . . . . . . . . . . . . . . . . . . Meltdown 1 | . . . . . . . . . . . . . 1 . . . . . . . . . . . . Destroy 39 | . 1 1 3 . . . 1 4 2 1 . . 1 . . . . . . 8 4 4 4 3 2 Blast 7 | . . . . . . . . . . . . . 2 . 1 . . . . . . . . 2 2 Smash 1 | . . . . . . . . . 1 . . . . . . . . . . . . . . . . Melee Attacks 50 | . . . . . . . . 20 2 10 . . 16 . . . . . . . 1 . 1 . . Impact 22 | . . . . . . . . 20 2 . . . . . . . . . . . . . . . . Slashing 26 | . . . . . . . . . . 9 . . 16 . . . . . . . 1 . . . . Piercing . | . . . . . . . . . . . . . . . . . . . . . . . . . . Sneak Attacks 6 | . . . . . . . . 1 . 3 . . . . . . . . . . 1 . 1 . . Combat Hostiles . | . . . . . . . . . . . . . . . . . . . . . . . . . . Follow-up Attacks . | . . . . . . . . . . . . . . . . . . . . . . . . . . Damage Inflicted 41386 | 27 506 1541 3439 1130 . 525 2005 3191 1675 943 268 . 6726 527 552 228 96 . 567 2105 5353 1674 1492 2036 4780 Guns 27109 | 27 429 453 3187 1028 . 484 1976 1542 1642 776 172 . 2617 146 44 . . . 113 1782 4742 1452 1427 1587 1483 Cannons 5836 | . . . . . . . . . . . 96 . 2975 287 435 228 96 . 338 323 . . . 331 727 Explosions 7563 | . 77 1082 183 . . . . 1602 . . . . 1134 94 . . . . 116 . 500 222 . . 2553 Melee 329 | . . . . . . . . 47 33 167 . . . . . . . . . . 82 . . . . Ramming 484 | . . 6 69 102 . 41 29 . . . . . . . 73 . . . . . 29 . . 118 17 Kinetic 29182 | 27 429 338 3187 1028 . 484 1976 1542 1642 776 172 . 2939 146 191 . . . 451 2105 4742 1452 1427 1918 2210 Thermal 3828 | . . 115 . . . . . . . . 96 . 2653 287 288 228 96 . . . . . 65 . . Explosive 7185 | . 77 1082 183 . . . . 1602 . . . . 1134 94 . . . . 116 . 344 . . . 2553 Electromagnetic 378 | . . . . . . . . . . . . . . . . . . . . . 156 222 . . . Impact 80 | . . . . . . . . 47 33 . . . . . . . . . . . . . . . . Slashing 249 | . . . . . . . . . . 167 . . . . . . . . . . 82 . . . . Piercing . | . . . . . . . . . . . . . . . . . . . . . . . . . . Highest Corruption 11 | . . . 2 2 2 2 . . . . . . 8 8 . . . . . 4 4 5 8 8 11 Average Corruption 4 | . . . 1 2 2 2 . . . . . . 7 8 . . . . . 3 4 4 4 2 10 Corruption Purged 18 | . . . . . . . . . . . . . . . . . . . . . . . 18 . . Corruption Blocked . | . . . . . . . . . . . . . . . . . . . . . . . . . . Effects 294 | . . . 22 23 13 14 . . . . . . 72 44 . . . . . 7 46 13 17 13 10 Message Errors 67 | . . . 7 3 5 3 . . . . . . 17 9 . . . . . 4 11 1 1 3 3 Matter Fused 72 | . . . 4 6 3 3 . . . . . . 21 12 . . . . . . 9 5 4 4 1 Heat Flow Errors 40 | . . . 3 4 . 3 . . . . . . 10 6 . . . . . . 7 2 3 1 1 Energy Discharges 32 | . . . 3 2 1 2 . . . . . . 4 9 . . . . . 2 4 3 1 . 1 Parts Rejected 6 | . . . . . . . . . . . . . 1 . . . . . . . . 1 . 1 3 Parts Fused 2 | . . . . . . . . . . . . . . 2 . . . . . . . . . . . Data Loss (minor) 34 | . . . 1 4 3 2 . . . . . . 11 4 . . . . . . 6 . 1 1 1 Data Loss (major) 9 | . . . 1 2 1 . . . . . . . . . . . . . . 1 . . 3 1 . Misfires 20 | . . . 2 2 . 1 . . . . . . 4 1 . . . . . . 4 1 3 2 . Alerts 5 | . . . 1 . . . . . . . . . 1 1 . . . . . . 2 . . . . Weapon Failures 7 | . . . . . . . . . . . . . 3 . . . . . . . 3 . 1 . . Overload Shots . | . . . . . . . . . . . . . . . . . . . . . . . . . . Overflow Damage 444 | . 16 10 . . . 2 4 45 33 . 11 . 79 28 27 43 . . . . 36 11 . 42 57 Projectiles 182 | . . . . . . . . . . . 11 . 71 . 6 43 . . . . . . . 31 20 Explosions 191 | . 16 10 . . . . . 45 . . . . 8 28 . . . . . . 36 11 . . 37 Melee 71 | . . . . . . 2 4 . 33 . . . . . 21 . . . . . . . . 11 . Knockbacks 22 | . . 1 . 2 . . . . 1 . . . . . 1 . . . 8 2 1 . . 2 4 Impact 7 | . . 1 . 2 . . . . 1 . . . . . 1 . . . . . 1 . . . 1 Kinetic 15 | . . . . . . . . . . . . . . . . . . . 8 2 . . . 2 3 Secondary . | . . . . . . . . . . . . . . . . . . . . . . . . . . Self-Inflicted Damage 483 | . . 91 . . . . . 208 . . . . 94 31 . . . . . . . 8 . . 51 Shots 20 | . . 5 . . . . . 8 . . . . 3 1 . . . . . . . 1 . . 2 Rammed 31 | . . 3 8 7 . 1 1 . . . . . . . 2 . . . . . 1 . . 5 3 Targets Rammed 35 | . . 3 8 8 . 2 2 . . . . . . . 3 . . . . . 1 . . 5 3 Kicked . | . . . . . . . . . . . . . . . . . . . . . . . . . . Crushed 4 | . . . . 1 . 1 1 . . . . . . . 1 . . . . . . . . . . Highest Temperature 407 | . . 78 270 283 . 218 229 200 178 190 96 . 364 232 188 8 4 . 40 45 390 122 217 407 147 Average Temperature 52 | . . 22 45 92 . 83 60 54 67 52 34 . 38 82 38 3 2 . 22 18 108 18 53 115 29 Received Heat Transfer 3402 | . 42 175 663 72 . 225 288 486 207 60 . . 256 . 12 . . . 60 125 343 . 12 134 242 Effects 7 | . . . . 1 . . . . . . . . . . . . . . . . 2 . . 4 . Shutdowns 3 | . . . . . . . . . . . . . . . . . . . . . 1 . . 2 . Energy Bleed 1 | . . . . . . . . . . . . . . . . . . . . . . . . 1 . Interference 1 | . . . . 1 . . . . . . . . . . . . . . . . . . . . . Matter Decay 2 | . . . . . . . . . . . . . . . . . . . . . 1 . . 1 . Siege Activations 7 | . . . . . . . . . . . . . . . . . . . . . . . . 5 2 Total Turns 96 | . . . . . . . . . . . . . . . . . . . . . . . . 41 55 Longest Duration 45 | . . . . . . . . . . . . . . . . . . . . . . . . 18 45 Martial Activations . | . . . . . . . . . . . . . . . . . . . . . . . . . . Shielding Activations . | . . . . . . . . . . . . . . . . . . . . . . . . . . Robots Disrupted . | . . . . . . . . . . . . . . . . . . . . . . . . . . Combat Hostiles . | . . . . . . . . . . . . . . . . . . . . . . . . . . Robots Corrupted 4 | . . . . . . 1 . . 1 . . . . . 1 . . . . . . . . 1 . Combat Hostiles . | . . . . . . . . . . . . . . . . . . . . . . . . . . Parts Fried 8 | . 1 . . . . 2 2 . . . . . . . 2 . . . . . 1 . . . . Impact Corruptions 6 | . . . . . . 1 1 . 1 . . . . . 2 . . . . . . . . 1 . Robots Melted 1 | . . . . . . . . . . . . . 1 . . . . . . . . . . . . Combat Hostiles . | . . . . . . . . . . . . . . . . . . . . . . . . . . Parts Melted 6 | . . . . . . . . . . . . . 5 . . 1 . . . . . . . . . Heat Transferred 6229 | . . 407 . . . . . . . . 150 . 4124 450 450 350 150 . . . . . 148 . . Parts Sabotaged . | . . . . . . . . . . . . . . . . . . . . . . . . . . Parts Stolen . | . . . . . . . . . . . . . . . . . . . . . . . . . . Parts Stripped . | . . . . . . . . . . . . . . . . . . . . . . . . . . Power Chain Reactions . | . . . . . . . . . . . . . . . . . . . . . . . . . . Alert | -11 -10 -10 -9 -9 -9 -8 -8 -8 -8 -7 -7 -7 -7 -6 -6 -6 -6 -6 -5 -5 -5 -5 -5 -5 -4 ------- Run | Yrd Mat Min Mat Min Exi Min Mat Gar Mat Fac Low Low Zio Pro Fac Low Low Dat Pro Fac Ext Cet Arc Hub Fac Maximum Alert Level 4 | . . . 2 1 . . . 4 2 . . . . . . . . . . . 2 2 1 3 4 Low Security (%) 73 | 100 100 100 50 70 . 100 100 14 85 100 . . . . 100 . . . . 100 75 . 98 12 . Level 1 9 | . . . 16 29 . . . 4 13 . . . . . . . . . . . 16 92 1 2 4 Level 2 9 | . . . 33 . . . . 28 1 . . . . . . . . . . . 8 7 . 19 45 Level 3 5 | . . . . . . . . 30 . . . . . . . . . . . . . . . 66 7 Level 4 2 | . . . . . . . . 21 . . . . . . . . . . . . . . . . 42 Level 5 . | . . . . . . . . . . . . . . . . . . . . . . . . . . High Security . | . . . . . . . . . . . . . . . . . . . . . . . . . . Max Security . | . . . . . . . . . . . . . . . . . . . . . . . . . . Peak Influence 1417 | 10 148 84 608 253 . 60 128 1225 596 81 . . . . 109 . . . . 184 496 411 228 1056 1417 Initial 596 | . . 48 . 231 . . . 22 596 14 . . . . . . . . . 150 51 269 138 . 488 Average 190 | 5 61 29 272 158 . 12 65 717 99 15 . . . . 15 . . . . 86 115 341 28 710 850 Influence Increases 10395 | 10 427 348 1341 390 . 210 466 1273 394 269 60 . . 60 173 . 5 . 130 470 954 334 269 1496 1316 Destroy 0b10 Robot/C 4960 | . 220 160 840 260 . 120 280 580 240 140 40 . . 40 80 . . . 80 200 480 160 80 600 360 Destroy 0b10 Robot/NC 590 | 10 20 15 95 45 . 10 55 . 50 15 . . . 10 15 . 5 . 10 35 60 10 35 40 55 Destroy Leader 1072 | . 46 40 238 40 . 20 82 30 94 60 20 . . 10 12 . . . 10 54 76 . . 176 64 Allied During Kill 876 | . . . . . . . . . . . . . . . . . . . . . 173 150 105 448 . Trap Triggered on 0b10 10 | . 10 . . . . . . . . . . . . . . . . . . . . . . . . Successful Hack 209 | . 5 . 8 . . . 17 14 10 32 . . . . 15 . . . . 5 75 . . . 28 Select Force Hacks 120 | . 60 . 60 . . . . . . . . . . . . . . . . . . . . . . Disable Machine 660 | . . . . . . 15 15 15 . . . . . . 45 . . . . . . . 45 120 405 Anti-Garrison Action 450 | . . . . . . . . 450 . . . . . . . . . . . . . . . . . Destroy Structure 758 | . 6 118 25 . . . 2 79 . 22 . . . . 6 . . . . 26 90 14 4 82 284 Advance Influence 150 | . . . . . . . . . . . . . . . . . . . . 150 . . . . . Lose Combat Pursuer 540 | . 60 15 75 45 . 45 15 105 . . . . . . . . . . 30 . . . . 30 120 Influence Decreases 9131 | 10 302 473 748 949 34 210 432 82 1586 283 79 . . 60 108 65 5 . 130 365 577 469 616 498 1050 Entered New Map 2152 | . . 77 . 362 34 . . 12 629 19 8 . . . . 25 . . . . 54 213 209 . 510 Time Decay 5567 | 10 292 349 578 577 . 210 392 . 477 264 71 . . 50 108 40 5 . 130 340 473 246 357 328 270 Lost Part 424 | . 10 39 20 10 . . 40 70 30 . . . . 10 . . . . . 25 30 10 10 10 110 Lost Ally 238 | . . 8 . . . . . . . . . . . . . . . . . . 20 . 40 160 10 Purge Threat 750 | . . . 150 . . . . . 450 . . . . . . . . . . . . . . . 150 Squads Dispatched 49 | . 3 . 8 1 . . 1 . 1 6 . . . . 2 . . . . 3 3 . . 12 9 Investigation 10 | . 3 . 4 . . . . . 1 . . . . . . . . . . . . . . . 2 Extermination 11 | . . . . . . . . . . 5 . . . . 1 . . . . 1 . . . 2 2 Reinforcement 19 | . . . 3 . . . 1 . . 1 . . . . 1 . . . . 2 3 . . 5 3 Assault 4 | . . . 1 1 . . . . . . . . . . . . . . . . . . . . 2 Garrison 5 | . . . . . . . . . . . . . . . . . . . . . . . . 5 . Intercept . | . . . . . . . . . . . . . . . . . . . . . . . . . . Searches Triggered . | . . . . . . . . . . . . . . . . . . . . . . . . . . Data Miner Redirects 1 | . . . . . . . . . . . . . . . . . . . . . . . . . 1 Construction Impeded 5 | . . . 1 . . . . . . . . . . . . . . . . 1 1 . . 1 1 Haulers Reinforced 1 | . . . . . . . . . . . . . . . . . . . . . . . . . 1 Active Scanning Responses . | . . . . . . . . . . . . . . . . . . . . . . . . . . Cargo Convoy Interrupts 1 | . . . . . . . . . . . . . . . . . . . . 1 . . . . . Stealth | -11 -10 -10 -9 -9 -9 -8 -8 -8 -8 -7 -7 -7 -7 -6 -6 -6 -6 -6 -5 -5 -5 -5 -5 -5 -4 --------- Run | Yrd Mat Min Mat Min Exi Min Mat Gar Mat Fac Low Low Zio Pro Fac Low Low Dat Pro Fac Ext Cet Arc Hub Fac Distress Signals 20 | . 1 1 3 . . . 3 . 3 1 . . . . . . . . 1 . 4 1 . 1 1 Communications Jammed 4 | . . . . . . . . . . . . . . 2 . . . . . . . . . . 2 Distress Signals 2 | . . . . . . . . . . . . . . . . . . . . . . . . . 2 Times Spotted 466 | . 20 22 65 18 . 9 24 31 22 13 2 . 68 4 7 . . . 7 13 31 6 32 30 42 Peak Tracking Total 12 | . 3 4 5 4 . 3 4 8 3 2 1 . 7 2 3 . . . 6 3 4 5 2 7 12 Tactical Retreats 25 | . 3 3 4 1 . 2 1 3 . . . . 1 . . . . . 1 . . . . 2 4 Traps | -11 -10 -10 -9 -9 -9 -8 -8 -8 -8 -7 -7 -7 -7 -6 -6 -6 -6 -6 -5 -5 -5 -5 -5 -5 -4 ------- Run | Yrd Mat Min Mat Min Exi Min Mat Gar Mat Fac Low Low Zio Pro Fac Low Low Dat Pro Fac Ext Cet Arc Hub Fac Traps Triggered 12 | . . . 3 . . . . 6 1 . . . . . 2 . . . . . . . . . . Indirectly . | . . . . . . . . . . . . . . . . . . . . . . . . . . Trap Hack Attempts 40 | . . . 14 26 . . . . . . . . . . . . . . . . . . . . . Triggered 1 | . . . . 1 . . . . . . . . . . . . . . . . . . . . . Disarmed 2 | . . . 2 . . . . . . . . . . . . . . . . . . . . . . Reprogrammed 5 | . 3 . . 2 . . . . . . . . . . . . . . . . . . . . . Reused 1 | . 1 . . . . . . . . . . . . . . . . . . . . . . . . Traps Extracted . | . . . . . . . . . . . . . . . . . . . . . . . . . . Installed . | . . . . . . . . . . . . . . . . . . . . . . . . . . Triggered 1 | . 1 . . . . . . . . . . . . . . . . . . . . . . . . Machines | -11 -10 -10 -9 -9 -9 -8 -8 -8 -8 -7 -7 -7 -7 -6 -6 -6 -6 -6 -5 -5 -5 -5 -5 -5 -4 ---------- Run | Yrd Mat Min Mat Min Exi Min Mat Gar Mat Fac Low Low Zio Pro Fac Low Low Dat Pro Fac Ext Cet Arc Hub Fac Machines Disabled 53 | . . . 1 . . 1 1 6 . . . . 3 . 3 . . . . . . . 3 8 27 Max in Single Turn 8 | . . . 1 . . 1 1 1 . . . . 1 . 1 . . . . . . . 2 1 8 Garrison Access 1 | . . . . . . . . . . . . . . . . . . . . . . . . 1 . Garrison Relay 5 | . . . . . . . . 5 . . . . . . . . . . . . . . . . . Network Hub 1 | . . . . . . . . . . . . . . . . . . . . . . . . 1 . Machines Repaired . | . . . . . . . . . . . . . . . . . . . . . . . . . . Machines Dismantled 1 | . . . . . . . . . . . . . . . . . . . . . . . . 1 . Machines Sabotaged . | . . . . . . . . . . . . . . . . . . . . . . . . . . Overloaded Fab Kills . | . . . . . . . . . . . . . . . . . . . . . . . . . . Hacking | -11 -10 -10 -9 -9 -9 -8 -8 -8 -8 -7 -7 -7 -7 -6 -6 -6 -6 -6 -5 -5 -5 -5 -5 -5 -4 --------- Run | Yrd Mat Min Mat Min Exi Min Mat Gar Mat Fac Low Low Zio Pro Fac Low Low Dat Pro Fac Ext Cet Arc Hub Fac Machines Accessed 70 | . 7 . 10 1 1 . 6 4 8 7 1 . . . 5 1 . 3 . 4 7 . . 2 3 Terminals 39 | . 5 . 6 . . . 3 4 5 3 . . . . 2 . . . . 1 7 . . 1 2 Fabricators 5 | . . . . . . . . . . 2 . . . . 1 . . . . 1 . . . . 1 Repair Stations 2 | . . . . . . . 1 . 1 . . . . . . . . . . . . . . . . Recycling Units 7 | . 2 . 2 . . . 1 . . . . . . . 1 . . . . 1 . . . . . Scanalyzers 6 | . . . 2 . . . . . 2 1 . . . . 1 . . . . . . . . . . Garrison Access 4 | . . . . . . . 1 . . 1 . . . . . . . . . 1 . . . 1 . Total Hacks 185 | . 14 . 20 1 1 . 18 10 19 15 1 . . . 14 1 . 24 . 9 20 . . 5 13 Successful 96 | . 10 . 10 1 1 . 8 2 9 3 1 . . . 7 1 . 24 . 3 10 . . 1 5 Failed 88 | . 4 . 10 . . . 10 8 10 11 . . . . 7 . . . . 6 10 . . 4 8 Catastrophic 18 | . 1 . 2 . . . . 1 1 1 . . . . 2 . . . . 2 4 . . 1 3 Database Lockouts 1 | . . . . . . . . . . 1 . . . . . . . . . . . . . . . Manual 65 | . 11 . 10 . . . 8 4 5 2 . . . . 6 . . . . . 11 1 . 4 3 Terminals 106 | . 12 . 12 . . . 9 10 13 8 . . . . 7 . . . . 3 20 . . 4 8 Fabricators 14 | . . . . . . . . . . 3 . . . . 3 . . . . 3 . . . . 5 Repair Stations 5 | . . . . . . . 3 . 2 . . . . . . . . . . . . . . . . Recycling Units 12 | . 2 . 3 . . . 4 . . . . . . . 2 . . . . 1 . . . . . Scanalyzers 13 | . . . 5 . . . . . 4 2 . . . . 2 . . . . . . . . . . Garrison Access 7 | . . . . . . . 2 . . 2 . . . . . . . . . 2 . . . 1 . Terminal Hacks 58 | . 6 . 2 1 1 . 2 2 6 2 1 . . . 1 1 . 24 . 1 6 . . . 2 Record 7 | . . . . . 1 . . . . . . . . . . . . 6 . . . . . . . Part Schematic 10 | . 1 . . . . . . . . . . . . . . . . 8 . . 1 . . . . Robot Schematic 7 | . . . . . . . . . . . . . . . . . . 7 . . . . . . . Robot Analysis 6 | . 3 . 1 . . . 1 . 1 . . . . . . . . . . . . . . . . Prototype ID Bank 5 | . . . . . . . . . . . . . . . . . . 3 . . 2 . . . . Open Door 3 | . . . . 1 . . . . . . 1 . . . . 1 . . . . . . . . . Branch Access Points 2 | . . . . . . . . . . 1 . . . . . . . . . . . . . . 1 Emergency Access Points 1 | . . . . . . . . 1 . . . . . . . . . . . . . . . . . Terminal Index 1 | . . . . . . . . . . 1 . . . . . . . . . . . . . . . Alert Level 1 | . . . . . . . . . 1 . . . . . . . . . . . . . . . . Unreport Threat 5 | . . . 1 . . . . . 3 . . . . . . . . . . . . . . . 1 Locate Traps 5 | . 1 . . . . . 1 . 1 . . . . . . . . . . . 2 . . . . Reprogram Traps 1 | . 1 . . . . . . . . . . . . . . . . . . . . . . . . Zone Layout 3 | . . . . . . . . . . . . . . . 1 . . . . 1 1 . . . . Patrol Navigation 1 | . . . . . . . . 1 . . . . . . . . . . . . . . . . . Fabricator Hacks 6 | . . . . . . . . . . . . . . . 2 . . . . 2 . . . . 2 Network Status 2 | . . . . . . . . . . . . . . . 1 . . . . 1 . . . . . Load Schematic 2 | . . . . . . . . . . . . . . . . . . . . 1 . . . . 1 Build 2 | . . . . . . . . . . . . . . . 1 . . . . . . . . . 1 Repair Station Hacks 2 | . . . . . . . 2 . . . . . . . . . . . . . . . . . . Scan Component 1 | . . . . . . . 1 . . . . . . . . . . . . . . . . . . Repair 1 | . . . . . . . 1 . . . . . . . . . . . . . . . . . . Recycling Unit Hacks 3 | . . . . . . . 1 . . . . . . . 2 . . . . . . . . . . Retrieve Components 3 | . . . . . . . 1 . . . . . . . 2 . . . . . . . . . . Scanalyzer 8 | . . . 5 . . . . . 2 1 . . . . . . . . . . . . . . . Insert Component 1 | . . . 1 . . . . . . . . . . . . . . . . . . . . . . Retrieve Study 7 | . . . 4 . . . . . 2 1 . . . . . . . . . . . . . . . Garrison Access Hacks 2 | . . . . . . . 1 . . . . . . . . . . . . . . . . 1 . Unlock Access 1 | . . . . . . . 1 . . . . . . . . . . . . . . . . . . Seal Access 1 | . . . . . . . . . . . . . . . . . . . . . . . . 1 . Unauthorized Hacks 17 | . 4 . 3 . . . 2 . 1 . . . . . 2 . . . . . 4 . . . 1 Terminals 12 | . 2 . 1 . . . 1 . 1 . . . . . 2 . . . . . 4 . . . 1 Track 1 | . . . . . . . . . . . . . . . 1 . . . . . . . . . . Assimilate 2 | . 1 . . . . . . . . . . . . . . . . . . . . . . . 1 Botnet 8 | . 1 . 1 . . . 1 . 1 . . . . . 1 . . . . . 3 . . . . Disrupt 1 | . . . . . . . . . . . . . . . . . . . . . 1 . . . . Fabricators . | . . . . . . . . . . . . . . . . . . . . . . . . . . Repair Stations . | . . . . . . . . . . . . . . . . . . . . . . . . . . Recycling Units 5 | . 2 . 2 . . . 1 . . . . . . . . . . . . . . . . . . Reject 1 | . . . . . . . 1 . . . . . . . . . . . . . . . . . . Tunnel 4 | . 2 . 2 . . . . . . . . . . . . . . . . . . . . . . Scanalyzers . | . . . . . . . . . . . . . . . . . . . . . . . . . . Garrison Access . | . . . . . . . . . . . . . . . . . . . . . . . . . . Data Cores Recovered 1 | . . . . . . . . . . . . . . . . . . . . . 1 . . . . Used . | . . . . . . . . . . . . . . . . . . . . . . . . . . Hacking Detections 50 | . 3 . 7 . . . 5 4 6 6 . . . . 4 . . . . 4 7 . . 1 3 Full Trace Events 4 | . 1 . 1 . . . . . . . . . . . . . . . . . . . . . 2 Feedback Events . | . . . . . . . . . . . . . . . . . . . . . . . . . . Feedback Blocked . | . . . . . . . . . . . . . . . . . . . . . . . . . . Robot Schematics Acquired 11 | . . . . . . . . . . . . . 4 . . . . 7 . . . . . . . Robots Built . | . . . . . . . . . . . . . . . . . . . . . . . . . . Authchips . | . . . . . . . . . . . . . . . . . . . . . . . . . . Time . | . . . . . . . . . . . . . . . . . . . . . . . . . . Total Robot Build Rating . | . . . . . . . . . . . . . . . . . . . . . . . . . . Part Schematics Acquired 24 | . 1 . . . . . . . . . . . 14 . . . . 8 . . 1 . . . . Parts Built 3 | . . . . . . . . . . . . . . . 2 . . . . . . . . . 1 Authchips . | . . . . . . . . . . . . . . . . . . . . . . . . . . Time 117 | . . . . . . . . . . . . . . . 53 . . . . . . . . . 64 Total Part Build Rating 20 | . . . . . . . . . . . . . . . 12 . . . . . . . . . 8 Part Studies Acquired 7 | . . . 4 . . . . . 2 1 . . . . . . . . . . . . . . . Parts Repaired 1 | . . . . . . . 1 . . . . . . . . . . . . . . . . . . Time 108 | . . . . . . . 108 . . . . . . . . . . . . . . . . . . Parts Recycled . | . . . . . . . . . . . . . . . . . . . . . . . . . . Recycled Matter . | . . . . . . . . . . . . . . . . . . . . . . . . . . Retrieved Matter . | . . . . . . . . . . . . . . . . . . . . . . . . . . Retrieved Components 10 | . . . . . . . 10 . . . . . . . . . . . . . . . . . . Parts Scanalyzed . | . . . . . . . . . . . . . . . . . . . . . . . . . . Part Schematics Acquired . | . . . . . . . . . . . . . . . . . . . . . . . . . . Parts Damaged . | . . . . . . . . . . . . . . . . . . . . . . . . . . Bothacking | -11 -10 -10 -9 -9 -9 -8 -8 -8 -8 -7 -7 -7 -7 -6 -6 -6 -6 -6 -5 -5 -5 -5 -5 -5 -4 ------------ Run | Yrd Mat Min Mat Min Exi Min Mat Gar Mat Fac Low Low Zio Pro Fac Low Low Dat Pro Fac Ext Cet Arc Hub Fac Used RIF Installer . | . . . . . . . . . . . . . . . . . . . . . . . . . . Robots Hacked 8 | . . . . . . . . . . 2 . . 3 . . . . . . 2 . . 1 . . Non-combat 5 | . . . . . . . . . . 2 . . . . . . . . . 2 . . 1 . . Combat 3 | . . . . . . . . . . . . . 3 . . . . . . . . . . . . Robot Hacks Applied 8 | . . . . . . . . . . 2 . . 3 . . . . . . 2 . . 1 . . parse_system 3 | . . . . . . . . . . . . . 3 . . . . . . . . . . . . find_chute 3 | . . . . . . . . . . 2 . . . . . . . . . 1 . . . . . find_recycling 1 | . . . . . . . . . . . . . . . . . . . . 1 . . . . . check_alert 1 | . . . . . . . . . . . . . . . . . . . . . . . 1 . . Relay Couplers Released 17 | . . . . . . . . 17 . . . . . . . . . . . . . . . . . Machine Destruction 17 | . . . . . . . . 17 . . . . . . . . . . . . . . . . . Fabnet Peak Effective % . | . . . . . . . . . . . . . . . . . . . . . . . . . . Robots Rewired 10 | . . . . . . . . . . . . . . . . . . . . . 10 . . . . Allies Hacked . | . . . . . . . . . . . . . . . . . . . . . . . . . . Hacks Repelled . | . . . . . . . . . . . . . . . . . . . . . . . . . . Allies | -11 -10 -10 -9 -9 -9 -8 -8 -8 -8 -7 -7 -7 -7 -6 -6 -6 -6 -6 -5 -5 -5 -5 -5 -5 -4 -------- Run | Yrd Mat Min Mat Min Exi Min Mat Gar Mat Fac Low Low Zio Pro Fac Low Low Dat Pro Fac Ext Cet Arc Hub Fac Total Allies 24 | . 1 . . 1 . . . . . . . . 5 . . . . . . . 11 5 . . 1 Largest Group 13 | . 1 1 . 1 . . . . . . . . 5 . . . . . . . 9 13 11 9 1 Highest-Rated Group 811 | . 10 10 . 31 . . . . . . . . 144 . . . . . . . 383 811 572 508 10 Highest-Rated Ally 159 | . 10 10 . 31 . . . . . . . . 31 . . . . . . . 159 153 96 96 10 Initial Warlord ECA Mod 9 | . . . . . . . . . 9 8 8 8 8 7 7 7 7 7 6 6 6 6 6 6 5 Total Orders 32 | . 2 7 . . . . . . . . . . . . . . . . . . . 14 7 2 . STAY 21 | . 1 3 . . . . . . . . . . . . . . . . . . . 11 5 1 . FOLLOW 11 | . 1 4 . . . . . . . . . . . . . . . . . . . 3 2 1 . Ally Attacks 244 | . . . . 12 . . . . . . . . . . . . . . . . 83 52 10 87 . Total Damage 7963 | . . . . 214 . . . . . . . . . . . . . . . . 2452 1237 357 3703 . Kills 47 | . . . . . . . . . . . . . . . . . . . . . 8 8 3 28 . Allies Corrupted 1 | . . . . . . . . . . . . . . . . . . . . . . . . 1 . Allies Melted . | . . . . . . . . . . . . . . . . . . . . . . . . . . Intel | -11 -10 -10 -9 -9 -9 -8 -8 -8 -8 -7 -7 -7 -7 -6 -6 -6 -6 -6 -5 -5 -5 -5 -5 -5 -4 ------- Run | Yrd Mat Min Mat Min Exi Min Mat Gar Mat Fac Low Low Zio Pro Fac Low Low Dat Pro Fac Ext Cet Arc Hub Fac Active Infowar (turns) 20735 | 17 746 1220 389 1 . . . . 741 1902 2456 1543 2011 1525 1136 1123 999 116 1026 800 2014 535 45 97 293 Optics 3 | . . . . . . . . . . . . . . . 2 . . . . 1 . . . . . Sensors 16231 | . . . . 1 . . . . . 1234 2409 1543 1382 1521 1136 1123 999 116 1026 800 2014 535 45 97 250 Structural 1609 | . 385 1220 4 . . . . . . . . . . . . . . . . . . . . . . Seismic 764 | 17 361 . 386 . . . . . . . . . . . . . . . . . . . . . . Machine Analysis 8644 | . . . . . . . . . 741 1902 2456 1543 2002 . . . . . . . . . . . . Jamming 57 | . . . . . . . . . . . . . 9 4 . . . . . . 1 . . . 43 Robot Analysis Total 6 | . 3 . 1 . . . 1 . 1 . . . . . . . . . . . . . . . . Derelict Logs Recovered 14 | . . . . 2 . . . . . . 1 2 1 3 . 2 1 . 2 . . . . . . Drone Launches . | . . . . . . . . . . . . . . . . . . . . . . . . . . Drone Recoveries . | . . . . . . . . . . . . . . . . . . . . . . . . . . Exploration | -11 -10 -10 -9 -9 -9 -8 -8 -8 -8 -7 -7 -7 -7 -6 -6 -6 -6 -6 -5 -5 -5 -5 -5 -5 -4 ------------- Run | Yrd Mat Min Mat Min Exi Min Mat Gar Mat Fac Low Low Zio Pro Fac Low Low Dat Pro Fac Ext Cet Arc Hub Fac Turns Passed 41268 | 31 837 1220 2712 1760 624 945 1021 1921 1514 1902 2456 1543 8429 1525 1136 1123 999 116 1026 800 2014 535 3639 844 596 Spaces Moved 17059 | 19 523 560 949 660 308 419 331 761 647 835 1195 787 2954 701 677 665 608 74 609 366 869 226 458 402 456 Core 237 | . . . . . . . . . . . . . . . . . . . . . . . 99 . 138 Treads 15954 | . . 406 949 660 308 419 331 761 647 835 1195 787 2954 701 677 665 608 74 609 366 869 226 359 402 146 Legs 696 | 19 523 154 . . . . . . . . . . . . . . . . . . . . . . . Wheels . | . . . . . . . . . . . . . . . . . . . . . . . . . . Hover . | . . . . . . . . . . . . . . . . . . . . . . . . . . Flight 172 | . . . . . . . . . . . . . . . . . . . . . . . . . 172 Fastest Speed 37 | 120 120 160 160 200 200 200 200 212 200 196 196 196 191 191 151 154 156 156 156 156 168 164 161 161 37 Average Speed 196 | 120 134 174 208 200 200 200 204 212 203 198 196 196 197 202 151 155 156 156 156 159 168 165 678 161 82 Slowest Speed 2550 | 120 190 240 240 200 200 200 212 216 212 206 196 196 211 205 154 156 156 156 156 207 168 168 2550 161 245 Overloaded Moves . | . . . . . . . . . . . . . . . . . . . . . . . . . . Propulsion Burnouts . | . . . . . . . . . . . . . . . . . . . . . . . . . . Robots Hopped 4 | . . . . . . . . . . . . . . . . . . . . . . . . . 4 Potential Cave-ins 5 | . . . . . . . . . . . . . . . . 2 . . . . . . . . 3 Cave-ins Triggered . | . . . . . . . . . . . . . . . . . . . . . . . . . . Exploration Rate (%) 64 | 4 86 98 91 98 69 89 34 97 51 23 92 77 88 74 20 76 75 68 63 9 89 63 89 47 19 Regions Visited 25 Branch Regions 16 Pre-discovered Areas 9 | . 2 1 2 . . . . . . . 1 . . 1 . . 1 1 . . . . . . . Known Exits Taken 16 | . . . . . . . 1 . 1 1 1 1 1 1 1 1 1 1 1 1 1 1 . 1 . Unknown Exits Taken 8 | 1 1 1 1 1 1 1 . . . . . . . . . . . . . . . . 1 . . Scrap Searched 24 | . . 1 . 3 . 2 . . . . 5 . 2 1 . 4 5 . 1 . . . . . . Spaces Dug 89 | . . 2 . . . . . 10 . 16 9 . 8 8 3 9 10 . 4 4 . . . 5 1 Terrain Destroyed 752 | . 6 190 15 . . . . 86 . 23 16 . 54 11 7 21 18 . 51 12 32 17 3 19 171 Melee 22 | . . . . . . . . 10 . 6 . . 6 . . . . . . . . . . . . Projectile 176 | . . 2 . . . . . . . 17 16 . 17 4 7 21 18 . 11 8 5 16 3 19 12 AOE 549 | . 6 188 15 . . . . 76 . . . . 31 7 . . . . 40 . 27 . . . 159 Terrain Rammed . | . . . . . . . . . . . . . . . . . . . . . . . . . . Walls Destroyed . | . . . . . . . . . . . . . . . . . . . . . . . . . . Machines Disabled . | . . . . . . . . . . . . . . . . . . . . . . . . . . Actions | -11 -10 -10 -9 -9 -9 -8 -8 -8 -8 -7 -7 -7 -7 -6 -6 -6 -6 -6 -5 -5 -5 -5 -5 -5 -4 --------- Run | Yrd Mat Min Mat Min Exi Min Mat Gar Mat Fac Low Low Zio Pro Fac Low Low Dat Pro Fac Ext Cet Arc Hub Fac Total 22645 | 23 595 707 1374 1013 317 496 580 936 769 1008 1273 787 5065 778 760 723 639 74 662 492 1236 333 902 516 587 Wait 3102 | . 18 30 141 262 . 54 137 34 22 57 33 . 1633 38 16 11 . . 34 8 128 12 345 42 47 Move 17029 | 18 522 559 948 659 307 418 331 760 646 834 1194 786 2953 700 676 664 607 73 608 365 868 225 457 402 449 Hop 3 | . . . . . . . . . . . . . . . . . . . . . . . . . 3 Pick Up 234 | . 7 10 38 4 1 2 17 11 14 13 2 . 23 1 12 4 1 . 1 18 14 18 10 4 9 Fast Attach 64 | 1 1 4 3 2 1 . 2 . 2 1 . . 3 2 3 3 1 . . 3 5 7 9 4 7 Attach 88 | . 2 7 8 1 2 . 6 8 3 4 . . 10 4 2 1 . . . 5 4 1 9 3 8 Detach 42 | . 2 5 3 . 1 . . 2 . . . . 3 4 3 . 1 . . 3 1 1 8 4 1 Swap 277 | . 9 10 21 5 2 1 8 19 14 36 16 1 25 6 15 6 5 1 2 22 18 13 3 13 6 Drop 253 | 2 3 11 31 6 3 1 19 6 20 16 2 . 19 2 12 5 3 . 1 19 17 27 16 3 9 Fire 1316 | 2 31 68 159 40 . 18 58 64 46 37 26 . 380 19 18 29 21 . 16 49 83 29 44 34 45 Melee 50 | . . . . . . . . 20 2 10 . . 16 . . . . . . . 1 . 1 . . Ram 2 | . . . . . . . . . . . . . . . . . . . . . . . . . 2 Kick . | . . . . . . . . . . . . . . . . . . . . . . . . . . Crush 32 | . . 3 8 8 . 2 2 . . . . . . . 3 . . . . . 1 . . 4 1 Escape Stasis 12 | . . . . . . . . 12 . . . . . . . . . . . . . . . . . Rewire 98 | . . . . . . . . . . . . . . 2 . . . . . . 96 . . . . Trap 40 | . . . 14 26 . . . . . . . . . . . . . . . . . . . . . Miscellaneous 3 | . . . . . . . . . . . . . . . . . . . . . . . . 3 . Route ------- -11/Scrapyard -10/Materials (discovered 5 exits: *Mat x2 / [*Min x2] / [Sub]) -10/Mines (discovered 2 exits: *Mat x2) -9/Materials (discovered 5 exits: *Mat x2 / *Min x2 / [*Sto]) -9/Mines (discovered 4 exits: *Mat x2 / *Exi / *Zio) -9/Exiles (discovered 2 exits: [*Min x2]) -8/Mines (discovered 2 exits: *Mat x2) -8/Materials (discovered 4 exits: *Fac x3 / Gar) -8/Garrison (discovered 3 exits: *Mat x3) -8/Materials (discovered 2 exits: *Fac x2) -7/Factory (discovered 2 exits: *Low x2) -7/Lower Caves -7/Lower Caves (discovered 2 exits: *Fac / *Zio) -7/Zion -6/Proximity Caves -6/Factory -6/Lower Caves -6/Lower Caves (discovered 2 exits: *Fac / *Dat) -6/Data Miner -5/Proximity Caves -5/Factory (discovered 4 exits: *Fac x2 / *Ext x2) -5/Extension (discovered 2 exits: *Fac / *Cet) -5/Cetus (discovered 2 exits: *Fac / *Arc) -5/Archives (discovered 3 exits: *Fac / *Hub x2) -5/Hub_04(d) (discovered 2 exits: *Fac x2) -4/Factory (discovered 3 exits: Upp x2 / Arm) History --------- Turn | Location | Event 8 | -11/Scrapyard | Discovered new exit (range 2) 32 | -11/Scrapyard | Entered Materials 169 | -10/Materials | Discovered new exit (range 3) 302 | -10/Materials | Discovered new exit (range 7) 316 | -10/Materials | Build established: Mutant 341 | -10/Materials | Discovered new exit (range 14) 379 | -10/Materials | Discovered new exit (range 16) 531 | -10/Materials | Discovered new exit (range 8) 869 | -10/Materials | Entered Mines 869 | -10/Mines | Accompanied by 1 ally 874 | -10/Mines | Met a Derelict bent on vengeance 1080 | -10/Mines | Discovered new exit (range 8) 1081 | -10/Mines | Learned location of Storage (-9) 1137 | -10/Mines | Assembled infested the area 1142 | -10/Mines | Assisted by a Guerilla fighting off Assembled 1290 | -10/Mines | Lost 3 parts (1p1n1w) 1407 | -10/Mines | Discovered new exit (range 5) 1679 | -10/Mines | Joined a pair of Derelicts in attacking an 0b10 outpost 1993 | -10/Mines | Build established: Scavenger-Mutant 2089 | -10/Mines | Entered Materials 2089 | -9/Materials | Evolved 2 slots: Propulsion x1, Utility x1 3277 | -9/Materials | Discovered new exit (range 7) 3497 | -9/Materials | Discovered new exit (range 15) 3841 | -9/Materials | Discovered new exit (range 7) 4041 | -9/Materials | Discovered new exit (range 12) 4227 | -9/Materials | Discovered new exit (range 10) 4489 | -9/Materials | First assault squad dispatched 4801 | -9/Materials | Entered Mines 4846 | -9/Mines | A Derelict revealed a hidden shortcut to a safe place 5136 | -9/Mines | Found a damaged Exp. Sensor Array with a note attached 5141 | -9/Mines | Found Prototype Device 5141 | -9/Mines | Identified Exp. Sensor Array 5162 | -9/Mines | Learned Materials emergency access door positions 5183 | -9/Mines | Met a Derelict testing a Signal Generator 5399 | -9/Mines | Discovered new exit (range 14) 5459 | -9/Mines | Deemed a non-threat by the Exiles lab entrance 5459 | -9/Mines | Discovered new exit (range 5) 5641 | -9/Mines | Met a Derelict who couldn't figure out how to use a Trap Extractor 5826 | -9/Mines | Discovered new exit (range 9) 5833 | -9/Mines | Received a Rocket Launcher from a helpful Derelict 5901 | -9/Mines | Learned 4 Materials zone layouts 6561 | -9/Mines | Entered Exiles 6561 | -9/Exiles | Found Exiles lab abandoned 6592 | -9/Exiles | Discovered new exit (range 15) 6627 | -9/Exiles | Build established: Mutant 7064 | -9/Exiles | Discovered new exit (range 14) 7185 | -9/Exiles | Entered Mines 7308 | -8/Mines | Discovered new exit (range 15) 7490 | -8/Mines | Build established: Scavenger-Mutant 7698 | -8/Mines | Discovered new exit (range 10) 8130 | -8/Mines | Entered Materials 8130 | -8/Materials | Evolved 2 slots: Propulsion x1, Weapon x1 8131 | -8/Materials | Identified exit to Factory 8354 | -8/Materials | Lost 3 parts (1p1n1u) 8600 | -8/Materials | Build established: Scavenger-Gunner 8705 | -8/Materials | Repaired Exp. Sensor Array 9058 | -8/Materials | Discovered exit to Factory (range 9) 9151 | -8/Materials | Identified exit to Garrison 9151 | -8/Materials | Entered Garrison 9183 | -8/Garrison | Triggered checkpoint 9205 | -8/Garrison | Garrison Relay disabled 9491 | -8/Garrison | Triggered checkpoint 9550 | -8/Garrison | Destroyed 11 combat bots 9619 | -8/Garrison | Discovered new exit (range 10) 9661 | -8/Garrison | Triggered checkpoint 9706 | -8/Garrison | Garrison Relay disabled 10193 | -8/Garrison | Discovered new exit (range 15) 10225 | -8/Garrison | Garrison Relay disabled 10376 | -8/Garrison | Triggered checkpoint 10447 | -8/Garrison | Garrison Relay disabled 10527 | -8/Garrison | Triggered checkpoint 10599 | -8/Garrison | Discovered new exit (range 10) 10613 | -8/Garrison | Triggered checkpoint 10654 | -8/Garrison | Garrison Relay disabled 10742 | -8/Garrison | Build established: Scavenger-Mutant 11072 | -8/Garrison | Entered Materials 11562 | -8/Materials | Discovered exit to Factory (range 8) 11825 | -8/Materials | Build established: Scavenger-Gunner 12203 | -8/Materials | Build established: Scavenger-Tank 12300 | -8/Materials | Discovered exit to Factory (range 16) 12514 | -8/Materials | Build established: Tank 12586 | -8/Materials | Entered Factory 12586 | -7/Factory | Evolved 2 slots: Utility x2 12877 | -7/Factory | Build established: Assassin 12991 | -7/Factory | Central database locked down 13404 | -7/Factory | Identified exit to Lower Caves 13575 | -7/Factory | Build established: Scientist-Tank 14091 | -7/Factory | Build established: Scientist-Skirmisher 14488 | -7/Factory | Entered Lower Caves 14587 | -7/Lower Caves | Build established: Skirmisher 14820 | -7/Lower Caves | Met a Warlord Commander 14821 | -7/Lower Caves | Learned location of Warlord (-4) 14822 | -7/Lower Caves | Warlord Commander delivered Encrypted Comm Array 15282 | -7/Lower Caves | Identified exit to Lower Caves 16944 | -7/Lower Caves | Entered another Lower Caves area 16991 | -7/Lower Caves | Discovered new exit (range 9) 17005 | -7/Lower Caves | Identified exit to Factory 17107 | -7/Lower Caves | Identified exit to Zion 18487 | -7/Lower Caves | Entered Zion 18560 | -7/Zion | Discovered new exit (range 14) 18593 | -7/Zion | Identified exit to Proximity Caves 19051 | -7/Zion | Learned Factory repair station intel 19096 | -7/Zion | Received a hallucinogenic algorithm 19199 | -7/Zion | Given A8's code to call for help 19278 | -7/Zion | Met Imprinter 20457 | -7/Zion | Build established: Mutant 21140 | -7/Zion | Found GAL Module 21183 | -7/Zion | Build established: Tank 21573 | -7/Zion | Gained Derelict followers 21573 | -7/Zion | Learned Factory emergency access door positions 21667 | -7/Zion | Visited the Megawrench Repair Shop 21667 | -7/Zion | Megawrench repaired 10 parts 24041 | -7/Zion | Attacked by Zionites 24766 | -7/Zion | Lost 3 parts (1n1u1w) 26511 | -7/Zion | Spotted FA-236(B) 26513 | -7/Zion | Spotted PF-ZRA(B) 26551 | -7/Zion | Destroyed PF-ZRA(B) 26605 | -7/Zion | Build established: Scavenger-Tank 26663 | -7/Zion | Destroyed FA-236(B) 26687 | -7/Zion | Lost 3 parts (1p1n1u) 26916 | -7/Zion | Entered Proximity Caves 27210 | -6/Proximity Caves | Build established: Scavenger-Skirmisher 27674 | -6/Proximity Caves | Build established: Scavenger-Mutant 28090 | -6/Proximity Caves | Build established: Scavenger-Skirmisher 28441 | -6/Proximity Caves | Entered Factory 28441 | -6/Factory | Evolved 2 slots: Propulsion x2 28443 | -6/Factory | Loaded intel: 6 repair station locations 28905 | -6/Factory | Discovered new exit (range 13) 28922 | -6/Factory | Identified exit to Lower Caves 29047 | -6/Factory | Build established: Skirmisher 29113 | -6/Factory | Fabricated Imp. Weapon Cycler? 29577 | -6/Factory | Entered Lower Caves 29598 | -6/Lower Caves | Build established: Scavenger-Skirmisher 29760 | -6/Lower Caves | Found Alien Artifact 29760 | -6/Lower Caves | Identified Core Expander 29760 | -6/Lower Caves | Installed Core Expander, added new Propulsion slot 29843 | -6/Lower Caves | Encountered a Warlord checkpoint 30338 | -6/Lower Caves | Learned location of 1 exit from Factory 30660 | -6/Lower Caves | Learned Factory stockpile data 30661 | -6/Lower Caves | Discovered new exit (range 7) 30697 | -6/Lower Caves | Identified exit to Lower Caves 30700 | -6/Lower Caves | Entered another Lower Caves area 30751 | -6/Lower Caves | Discovered new exit (range 11) 31204 | -6/Lower Caves | Build established: Derelict-Skirmisher 31565 | -6/Lower Caves | Discovered new exit (range 14) 31601 | -6/Lower Caves | Identified exit to Data Miner 31699 | -6/Lower Caves | Entered Data Miner 31699 | -6/Data Miner | Discovered new exit (range 6) 31729 | -6/Data Miner | Met Data Miner 31756 | -6/Data Miner | Learned location of Section 7 (-2) 31756 | -6/Data Miner | Acquired the access code to Warlord's prototype stash 31779 | -6/Data Miner | Received God Mode back door access code from Data Miner 31812 | -6/Data Miner | Identified exit to Proximity Caves 31815 | -6/Data Miner | Entered Proximity Caves 31818 | -5/Proximity Caves | Spotter reported a threat 31831 | -5/Proximity Caves | Learned location of 1 exit from Factory 32618 | -5/Proximity Caves | Discovered new exit (range 4) 32623 | -5/Proximity Caves | Identified exit to Factory 32841 | -5/Proximity Caves | Entered Factory 32841 | -5/Factory | Evolved 2 slots: Power x1, Weapon x1 32842 | -5/Factory | Identified exit to Extension 32842 | -5/Factory | Discovered new exit (range 9) 32843 | -5/Factory | Identified exit to Factory 33602 | -5/Factory | Cargo convoy interrupted 33641 | -5/Factory | Entered Extension 33721 | -5/Extension | Build established: Skirmisher 34097 | -5/Extension | Build established: Scavenger-Skirmisher 34413 | -5/Extension | Rescued a captive Derelict 34634 | -5/Extension | Rescued A7 34808 | -5/Extension | Spotted B-75 Beast 34819 | -5/Extension | Allies destroyed B-75 Beast 34827 | -5/Extension | Spotted B-75 Beast 34856 | -5/Extension | Allies destroyed B-75 Beast 35616 | -5/Extension | Build established: Commander-Skirmisher 35618 | -5/Extension | Discovered exit to Factory (range 10) 35620 | -5/Extension | Discovered new exit (range 6) 35629 | -5/Extension | Identified exit to Cetus 35655 | -5/Extension | Entered Cetus 35655 | -5/Cetus | Accompanied by 9 allies (A7) 35660 | -5/Cetus | Acquired a Cetus Manufacturing Module code from A7 35689 | -5/Cetus | Spotted Cetus Guard 35694 | -5/Cetus | Spotted Cetus Guard 35701 | -5/Cetus | Allies destroyed Cetus Guard 35706 | -5/Cetus | Allies destroyed Cetus Guard 35899 | -5/Cetus | Started Cetus Manufacturing Module 35919 | -5/Cetus | Discovered new exit (range 16) 35924 | -5/Cetus | Manufactured an Enhanced Grunt 35949 | -5/Cetus | Manufactured an Enhanced Grunt 35963 | -5/Cetus | Spotted Cetus Guard 35963 | -5/Cetus | Spotted Cetus Guard 35967 | -5/Cetus | Spotted Cetus Guard 35968 | -5/Cetus | Spotted Cetus Guard 35974 | -5/Cetus | Manufactured an Enhanced Grunt 35976 | -5/Cetus | Destroyed Cetus Guard 35977 | -5/Cetus | Allies destroyed Cetus Guard 35982 | -5/Cetus | Allies destroyed Cetus Guard 35994 | -5/Cetus | Allies destroyed Cetus Guard 35998 | -5/Cetus | Discovered exit to Factory (range 15) 35999 | -5/Cetus | Manufactured an Enhanced Grunt 36006 | -5/Cetus | Met Revision 17 36024 | -5/Cetus | Manufactured an Enhanced Grunt 36089 | -5/Cetus | Murdered A7 36096 | -5/Cetus | Extracted ID and sensor layout for unrecognized location from A7's data core 36121 | -5/Cetus | Found Prototype Device 36121 | -5/Cetus | Identified Exp. Thermal Shield 36176 | -5/Cetus | Identified exit to Archives 36190 | -5/Cetus | Entered Archives 36190 | -5/Archives | Accompanied by 11 allies 36255 | -5/Archives | Discovered new exit (range 16) 36317 | -5/Archives | Discovered exit to Factory (range 16) 36364 | -5/Archives | Discovered new exit (range 16) 36627 | -5/Archives | Build established: Scavenger-Mutant 37348 | -5/Archives | Build established: Scavenger-Tank 39829 | -5/Archives | Entered Hub_04(d) 39829 | -5/Hub_04(d) | Accompanied by 9 allies 39977 | -5/Hub_04(d) | Lost 4 allies 40344 | -5/Hub_04(d) | Spotted B-75 Beast 40465 | -5/Hub_04(d) | Discovered exit to Factory (range 5) 40491 | -5/Hub_04(d) | Garrison activated, responded to threat 40564 | -5/Hub_04(d) | Network Hub disabled 40653 | -5/Hub_04(d) | Discovered exit to Factory (range 10) 40653 | -5/Hub_04(d) | Spotted Lightning 40654 | -5/Hub_04(d) | Spotted Lightning 40666 | -5/Hub_04(d) | Spotted Lightning 40673 | -5/Hub_04(d) | Entered Factory 40673 | -4/Factory | Evolved 2 slots: Utility x2 40947 | -4/Factory | Fabricated Arm. Heavy Treads (x1) 41018 | -4/Factory | System corruption reached 10% 41028 | -4/Factory | Lost 4 parts (1n1u2w) 41035 | -4/Factory | Destroyed 8 combat bots 41106 | -4/Factory | Lost 3 parts (2u1w) 41116 | -4/Factory | Released all parts (13) 41153 | -4/Factory | Core integrity fell below 50% 41173 | -4/Factory | First assault squad dispatched 41189 | -4/Factory | Incoming assault squad redirected 41229 | -4/Factory | Watched by a mysterious "MATRIX" hacker. 41229 | -4/Factory | Identified exit to Upper Caves 41229 | -4/Factory | Identified exit to Armory 41254 | -4/Factory | Core integrity fell below 20% 41269 | -4/Factory | Destroyed by S-27 Virus with Autogun Last Messages --------------- (23,44) Upper Caves (182,127) Upper Caves (107,93) Armory Map updated. 41231_ ALERT: Potential suspicious activity detected, Programmers report to Factory Zone 6Q. 41231_ ALERT: Hostiles spotted, dispatching reinforcements to Terminal F010. 41233_ Technician 7a reveals location of Stasis Trap. 41236_ Technician 7a reveals location of hidden door. 41239_ H8FVSDAMLC/OM#XOSZ2ESEW 1 41241_ Technician 7a reveals location of hidden door. 41245_ Acquired Impulse Thruster. 41249_ Acquired Hvy. Gauss Cannon. 41254_ Impulse Thruster destroyed. 41269_ Slammed into G-67 Veteran. Map ----- +----------------------------------------------------+ | ?????????????????????????????????????????????????? | | ?????????????????????????????????????????????????? | | ?????????????????????????????????????????????????? | | ?????????????????????????????????????????????????? | | ?????????????????????????????????????????????????? | | ?????????????????????????????????????????????????? | | ?????????????????????????????????????????????????? | | ?????????????????????????????????????????????????? | | ?????????????????????????????????????????????????? | | ?????????????????????????????????????????????????? | | ?????????????????????????????????????????????????? | | ?????????????????????????????????????????????????? | | ?????????????????????????"???????????????????????? | | ?????????????????????????"???????????????????????? | | ???????????#????????????? ???????????????????????? | | ########+### ???????????? ???????????????????????? | | ?# ???????????? ???????????????????????? | | ""?# ############+########+###???????????? | | Y"# ??????????? | | ! """# ???????????? | | """ # ??????????? | | """ + k ??????????? | | """ # ?????????? | | [ # g ?????????? | | """ """ + g g ?????????? | | """ """ #####+########@#######????????????????? | | """ """ ## !# #????????????????? | | ## # sg #????????????????? | | #####+####### """ # s #????????????????? | | ????# #?????# """ # #????????????????? | | ????# #?????# """ # s #????????????????? | | ????# ####### # s"" "" #????????????????? | | ????# + # s"" "" #????????????????? | | ????######### # """ """ #????????????????? | | ????????????# "" # """ """ #????????????????? | | ????????????# "" # """ """ #????????????????? | | ????????????# """ # #????????????????? | | ????????????# """ # #????????????????? | | ????????????# """ ##############????????????????? | | ????????????# #?????????????????????????????? | | ????????????########?????????????????????????????? | | ?????????????????????????????????????????????????? | | ?????????????????????????????????????????????????? | | ?????????????????????????????????????????????????? | | ?????????????????????????????????????????????????? | | ?????????????????????????????????????????????????? | | ?????????????????????????????????????????????????? | | ?????????????????????????????????????????????????? | | ?????????????????????????????????????????????????? | | ?????????????????????????????????????????????????? | +----------------------------------------------------+ Best States ------------- Heat Dissipation 67 Energy Generation 43 Energy Capacity 590 Matter Stores 300 Matter Capacity 300 Sight Range 16 Robot Scan Range 20 Terrain Scan Density 10 Jamming Range 14 Additional Mass Support 16 Armor Coverage 600 Propulsion Shielding 66 Evasion (%) 62 Targeting Accuracy 6 Recoil Reduction 7 Offensive Hacking 24 Defensive Hacking 12 Item Schematics ----------------- Huge Storage Unit | -10/Materials | Hacked Plasma Rifle | -7/Zion | Archive Gatling Laser | -7/Zion | Archive Chainsword | -7/Zion | Archive Adv. Heat Sink | -7/Zion | Archive Disruptor Cannon | -7/Zion | Archive Arc Projector | -7/Zion | Archive Nuclear Pulse Thruster | -7/Zion | Archive Remote Datajack | -7/Zion | Archive Matter Compressor | -7/Zion | Archive Hvy. Laser | -7/Zion | Archive Energy Well | -7/Zion | Archive Energy Filter | -7/Zion | Archive Mni. Drone Bay | -7/Zion | Archive Hvy. Machine Gun | -7/Zion | Archive Combat Drone Bay | -6/Data Miner | Free Lgt. Regenerative Plating | -6/Data Miner | Free Enh. Armored Leg | -6/Data Miner | Free Exp. Heat Sink | -6/Data Miner | Free Enh. Coil Gun | -6/Data Miner | Free Imp. Antigrav System | -6/Data Miner | Free Imp. Cloaking Device | -6/Data Miner | Free Matter Neutralizer | -6/Data Miner | Free Arm. Heavy Treads | -5/Extension | Hacked Robot Schematics ------------------ L-61 Swordsman | -7/Zion | Archive B-48 Gladiator | -7/Zion | Archive S-27 Virus | -7/Zion | Archive T-07 Excavator | -7/Zion | Archive R-10 Processor | -6/Data Miner | Free L-41 Fighter | -6/Data Miner | Free G-50 Soldier | -6/Data Miner | Free Y-54 Guardian | -6/Data Miner | Free A-15 Conveyor | -6/Data Miner | Free O-32 Director | -6/Data Miner | Free M-22 Extractor | -6/Data Miner | Free Fabricated ------------ Imp. Weapon Cycler | x2 | -6/Factory | Preloaded Arm. Heavy Treads | x1 | -4/Factory Repaired ---------- Exp. Sensor Array | 62% | -8/Materials Studied --------- Lgt. Treads | -9/Materials | Hacked Imp. Treads | -9/Materials | Hacked Hvy. Assault Rifle | -9/Materials | Hacked Autogun | -9/Materials | Hacked Arm. Treads | -8/Materials | Hacked Rocket Launcher | -8/Materials | Hacked Adv. Treads | -7/Factory | Hacked Alien Tech Used ----------------- Core Expander Achievements -------------- None Challenges ------------ None Game ------ Seed EnergyCloakingConstruct Manual? 0 Play Time 04:35:23 Cumulative 154.7 hours Start 2026.03.05 @ 00:42:15 End 2026.03.07 @ 01:48:50 Sessions 14 Manual Loads 0 Difficulty Rogue Special Mode None Game No. 111 Rogue 110 Adventurer 0 Explorer 1 Win Type - Total 15 Types 11/0/2/1/0/0/0/1/0/0 Lore% 55 Gallery% 56 Achievement% 53 Wizard Run 0 Options --------- Layout 2 ASCII 0 Keyboard 1 Movement Numpad Keybinds 0 Fullscreen 2 Font 24/Terminus Map View 50x44 Zoom Use 0% Tactical HUD 1 Map Filters NONE Filters NONE Steam 1 RUN: ce008322-37c5-46fa-87ad-56b8ea911deb